Cogmind - Beta 12 @@@ ROGUE MODE // 2023.06.11 @ 21:26:40 Player: Tack Result: Destroyed by Y-45 Defender with Beam Rifle Performance ------------- Evolutions (1) 500 Regions Visited (2) 400 Robots Destroyed (22) 110 Value Destroyed (557) 557 Prototype IDs (0) 0 Alien Tech Used (0) 0 Bonus (8) 8 TOTAL SCORE: 1575 Bonus ------- High Alert Combat Kills 8 Cogmind --------- Core Integrity 0/400 Matter 209/300 Energy 47/100 System Corruption 1% Temperature Cool (9) Movement Rolling (100) Location -9/Materials Parts ------- > --- POWER (2) -------- (None) > --- PROPULSION (3) --- Compact Wheel > --- UTILITY (2) ------ Medium Storage Unit Power Shielding > --- WEAPON (2) ------- Small Laser > --- INVENTORY (10) --- Improved Heat Sink Sensor Array Shield Generator Peak State ------------ > --- POWER ------------ Ion Engine Light Ion Engine > --- PROPULSION ------- Improved Hover Unit Improved Hover Unit Improved Hover Unit > --- UTILITY ---------- Medium Storage Unit Hardened Light Armor Plating > --- WEAPON ----------- EM Pulse Gun Particle Cannon > --- INVENTORY -------- Ion Engine Compact Wheel Flight Unit Improved Heat Sink Sensor Array Power Shielding Shield Generator [Rating: 15] Favorites ----------- Power Light Ion Engine Engine Light Ion Engine Power Core Light Nuclear Core Propulsion Aluminum Leg Leg Aluminum Leg Wheel Compact Wheel Hover Unit Improved Hover Unit Flight Unit Flight Unit Utility Medium Storage Unit Device Shield Generator Storage Medium Storage Unit Protection Hardened Light Armor Plating Weapon Light Assault Rifle Energy Gun Small Laser Energy Cannon Particle Cannon Ballistic Gun Light Assault Rifle Launcher Rocket Launcher Build | -11 -10 -9 ------- Run | Jun Mat Mat Slots Evolved 2 | . . 2 Power 1 | . . 1 Propulsion 1 | . . 1 Utility . | . . . Weapon . | . . . Parts Attached 34 | 6 8 20 Power 5 | 1 2 2 Engine 4 | 1 1 2 Core 1 | . 1 . Reactor . | . . . Propulsion 13 | 2 5 6 Treads . | . . . Leg 5 | 2 3 . Wheel 2 | . 1 1 Hover 3 | . . 3 Flight 3 | . 1 2 Utility 7 | 1 1 5 Device 1 | . . 1 Storage 2 | 1 1 . Processor . | . . . Hackware . | . . . Protection 4 | . . 4 Artifact . | . . . Weapon 9 | 2 . 7 Energy Gun 3 | 1 . 2 Energy Cannon 2 | . . 2 Ballistic Gun 2 | 1 . 1 Ballistic Cannon . | . . . Launcher 2 | . . 2 Special Weapon . | . . . Impact Weapon . | . . . Slashing Weapon . | . . . Piercing Weapon . | . . . Special Melee Weapon . | . . . Unidentified Prototypes . | . . . Parts Lost 14 | . 2 12 Power 4 | . 2 2 Propulsion 5 | . . 5 Utility 1 | . . 1 Weapon 4 | . . 4 Highest Loss Streak 10 | . 1 10 To Critical Strikes . | . . . Average Slot Usage (%) 91 | . 96 86 Engine 13 | . 7 18 Core 2 | . 5 . Leg 13 | . 26 . Hover 11 | . . 22 Flight 1 | . . 1 Storage 19 | . 27 12 Protection 3 | . . 6 Energy Gun 11 | . 14 8 Energy Cannon 1 | . . 2 Ballistic Gun 11 | . 14 9 Naked Turns . | . . . Heaviest Build 28 | 10 22 28 Greatest Support 21 | 20 20 21 Greatest Overweight (x) 7 | . 7 7 Average Overweight (x) . | . . 1 Largest Inventory Capacity 10 | 8 10 10 Average Capacity 9 | 7 9 10 Most Carried 10 | 3 10 10 Average Carried 6 | 2 5 7 Final Capacity 10 | 8 10 10 Final Carried 10 | 3 10 3 Class Distribution -------------------- 100% | Mutant Dominant Class ---------------- Mutant | -10/Materials Mutant | -9/Materials Resources | -11 -10 -9 ----------- Run | Jun Mat Mat Matter Collected 538 | 202 160 176 Remotely . | . . . Salvage Created 618 | . 302 316 Parts 58 | . 26 32 Haulers Intercepted . | . . . Recyclers Shooed . | . . . Parts Field Recycled . | . . . Retrieved Matter . | . . . Parts Self-Destructed . | . . . Prevented . | . . . Kills | -11 -10 -9 ------- Run | Jun Mat Mat Combat Hostiles Destroyed 18 | . 9 9 Guns 11 | . 9 2 Cannons 4 | . . 4 AOE 3 | . . 3 Classes Destroyed 6 | . 2 4 Worker 2 | . . 2 Builder 2 | . . 2 Swarmer 6 | . 3 3 Grunt 10 | . 6 4 Duelist 1 | . . 1 Sentry 1 | . . 1 Best Kill Streak 5 | . 5 5 Combat Bots Only 5 | . 5 3 Max Kills in Single Turn 4 | . 1 4 Gunslinging . | . . . Exploded 2 | . . 2 Melee . | . . . Uniques/NPCs Destroyed . | . . . Combat | -11 -10 -9 -------- Run | Jun Mat Mat Damage Taken 1852 | . 521 1331 Core 508 | . 106 402 Absorbed by Shields 8 | . . 8 Core Remaining (%) 78 | 100 57 . Volleys Fired 72 | . 32 40 Largest 2 | . 2 2 Hottest 108 | . 60 108 Shots Fired 119 | . 64 55 Gun 97 | . 64 33 Cannon 12 | . . 12 Launcher 10 | . . 10 Special . | . . . Kinetic 54 | . 32 22 Thermal 45 | . 32 13 Explosive 10 | . . 10 Electromagnetic 10 | . . 10 Robot Hit Streak 12 | . 12 9 Robot Miss Streak 4 | . 3 4 Penetration Max . | . . . Secondary Targets . | . . . Shots Hit Robots 71 | . 39 32 Core Hits 48 | . 19 29 Critical Kills 1 | . . 1 Critical Parts Destroyed . | . . . Critical Strikes 1 | . . 1 Destroy 1 | . . 1 Melee Attacks . | . . . Impact . | . . . Slashing . | . . . Piercing . | . . . Sneak Attacks . | . . . Combat Hostiles . | . . . Follow-up Attacks . | . . . Damage Inflicted 1290 | . 357 933 Guns 572 | . 357 215 Cannons 122 | . . 122 Explosions 590 | . . 590 Melee . | . . . Ramming 6 | . . 6 Kinetic 268 | . 153 115 Thermal 337 | . 204 133 Explosive 590 | . . 590 Electromagnetic 89 | . . 89 Impact . | . . . Slashing . | . . . Piercing . | . . . Highest Corruption 1 | . . 1 Average Corruption 1 | . . 1 Corruption Purged . | . . . Corruption Blocked . | . . . Overload Shots . | . . . Overflow Damage 19 | . . 19 Projectiles . | . . . Explosions 19 | . . 19 Melee . | . . . Knockbacks . | . . . Impact . | . . . Kinetic . | . . . Secondary . | . . . Self-Inflicted Damage 62 | . . 62 Shots 3 | . . 3 Rammed 2 | . . 2 Targets Rammed 2 | . . 2 Kicked . | . . . Crushed . | . . . Highest Temperature 526 | . 131 526 Average Temperature 136 | . 50 187 Received Heat Transfer 552 | . 216 336 Effects 9 | . . 9 Shutdowns 2 | . . 2 Energy Bleed 4 | . . 4 Interference 2 | . . 2 Damage (core) 1 | . . 1 Siege Activations . | . . . Robots Corrupted . | . . . Combat Hostiles . | . . . Parts Fried 1 | . . 1 Impact Corruptions . | . . . Robots Melted . | . . . Combat Hostiles . | . . . Parts Melted . | . . . Heat Transferred 722 | . 475 247 Parts Sabotaged . | . . . Parts Stolen . | . . . Parts Stripped . | . . . Power Chain Reactions . | . . . Missiles Intercepted . | . . . Alert | -11 -10 -9 ------- Run | Jun Mat Mat Peak Influence 426 | . 205 426 Initial 86 | . . 86 Average 146 | . 109 214 Maximum Alert Level 2 | . 1 2 Low Security (%) 69 | 100 87 46 Level 1 26 | . 12 46 Level 2 3 | . . 7 Level 3 . | . . . Level 4 . | . . . Level 5 . | . . . High Security . | . . . Max Security . | . . . Squads Dispatched 2 | . 1 1 Investigation . | . . . Extermination . | . . . Reinforcement 2 | . 1 1 Assault . | . . . Garrison . | . . . Intercept . | . . . Searches Triggered . | . . . Construction Impeded 1 | . . 1 Haulers Reinforced . | . . . Active Scanning Responses . | . . . Cargo Convoy Interrupts . | . . . Stealth | -11 -10 -9 --------- Run | Jun Mat Mat Distress Signals 2 | . 2 . Communications Jammed . | . . . Distress Signals . | . . . Times Spotted 26 | . 12 14 Peak Tracking Total 6 | . 6 5 Tactical Retreats 1 | . . 1 Traps | -11 -10 -9 ------- Run | Jun Mat Mat Traps Triggered 1 | . . 1 Indirectly . | . . . Trap Hack Attempts . | . . . Triggered . | . . . Disarmed . | . . . Reprogrammed . | . . . Reused . | . . . Traps Extracted . | . . . Installed . | . . . Triggered . | . . . Machines | -11 -10 -9 ---------- Run | Jun Mat Mat Machines Disabled 4 | . . 4 Max in Single Turn 1 | . . 1 Machines Repaired . | . . . Machines Sabotaged . | . . . Overloaded Fab Kills . | . . . Hacking | -11 -10 -9 --------- Run | Jun Mat Mat Machines Accessed . | . . . Terminals . | . . . Fabricators . | . . . Repair Stations . | . . . Recycling Units . | . . . Scanalyzers . | . . . Garrison Access . | . . . Total Hacks . | . . . Successful . | . . . Failed . | . . . Catastrophic . | . . . Database Lockouts . | . . . Manual . | . . . Terminals . | . . . Fabricators . | . . . Repair Stations . | . . . Recycling Units . | . . . Scanalyzers . | . . . Garrison Access . | . . . Terminal Hacks . | . . . Fabricator Hacks . | . . . Repair Station Hacks . | . . . Recycling Unit Hacks . | . . . Scanalyzer . | . . . Garrison Access Hacks . | . . . Unauthorized Hacks . | . . . Terminals . | . . . Fabricators . | . . . Repair Stations . | . . . Recycling Units . | . . . Scanalyzers . | . . . Garrison Access . | . . . Data Cores Recovered . | . . . Used . | . . . Hacking Detections . | . . . Full Trace Events . | . . . Feedback Events . | . . . Feedback Blocked . | . . . Robot Schematics Acquired . | . . . Robots Built . | . . . Authchips . | . . . Time . | . . . Total Robot Build Rating . | . . . Part Schematics Acquired . | . . . Parts Built . | . . . Authchips . | . . . Time . | . . . Total Part Build Rating . | . . . Parts Repaired . | . . . Time . | . . . Parts Recycled . | . . . Recycled Matter . | . . . Retrieved Matter . | . . . Retrieved Components . | . . . Parts Scanalyzed . | . . . Part Schematics Acquired . | . . . Parts Damaged . | . . . Bothacking | -11 -10 -9 ------------ Run | Jun Mat Mat Used RIF Installer . | . . . Robots Hacked . | . . . Non-combat . | . . . Combat . | . . . Robot Hacks Applied . | . . . Relay Couplers Released . | . . . Fabnet Peak Effective % . | . . . Robots Rewired . | . . . Allies Hacked . | . . . Hacks Repelled . | . . . Allies | -11 -10 -9 -------- Run | Jun Mat Mat Total Allies . | . . . Largest Group . | . . . Highest-Rated Group . | . . . Highest-Rated Ally . | . . . Total Orders . | . . . Ally Attacks . | . . . Total Damage . | . . . Kills . | . . . Allies Corrupted . | . . . Allies Melted . | . . . Intel | -11 -10 -9 ------- Run | Jun Mat Mat Robot Analysis Total . | . . . Derelict Logs Recovered . | . . . Drone Launches . | . . . Drone Recoveries . | . . . Exploration | -11 -10 -9 ------------- Run | Jun Mat Mat Turns Passed 741 | 75 325 341 Spaces Moved 358 | 56 138 164 Core 18 | 13 2 3 Treads . | . . . Legs 187 | 43 135 9 Wheels . | . . . Hover 152 | . . 152 Flight 1 | . 1 . Fastest Speed 50 | 50 120 112 Average Speed 133 | 103 156 124 Slowest Speed 450 | 120 450 400 Overloaded Moves . | . . . Propulsion Burnouts . | . . . Robots Hopped . | . . . Cave-ins Triggered . | . . . Exploration Rate (%) 16 | 4 27 19 Regions Visited 2 Branch Regions . Pre-discovered Areas . | . . . Known Exits Taken . | . . . Unknown Exits Taken 2 | 1 1 . Scrap Searched . | . . . Spaces Dug . | . . . Terrain Destroyed 56 | . . 56 Melee . | . . . Projectile . | . . . AOE 56 | . . 56 Terrain Rammed . | . . . Walls Destroyed . | . . . Machines Disabled . | . . . Actions | -11 -10 -9 --------- Run | Jun Mat Mat Total 513 | 70 187 256 Wait 10 | 5 . 5 Move 356 | 55 137 164 Hop . | . . . Pick Up 18 | 4 7 7 Fast Attach 16 | 5 4 7 Attach 15 | 1 1 13 Detach 9 | . 2 7 Swap 3 | . 3 . Drop 12 | . 1 11 Fire 72 | . 32 40 Melee . | . . . Ram 2 | . . 2 Kick . | . . . Crush . | . . . Escape Stasis . | . . . Rewire . | . . . Trap . | . . . Miscellaneous . | . . . Route ------- -11/Junkyard -10/Materials -9/Materials History --------- Turn | Location | Event 41 | -11/Junkyard | Discovered new exit (range 15) 76 | -11/Junkyard | Entered Materials 322 | -10/Materials | Build established: Mutant 371 | -10/Materials | Discovered new exit (range 15) 401 | -10/Materials | Entered another Materials area 401 | -9/Materials | Evolved 2 slots: Power x1, Propulsion x1 716 | -9/Materials | Core integrity fell below 50% 734 | -9/Materials | Core integrity fell below 20% 742 | -9/Materials | Destroyed by Y-45 Defender with Beam Rifle Last Messages --------------- 00716_ Slammed into M-13 Machinist. 00718_ Lgt. Assault Rifle destroyed. 00719_ K-01 Serf collects debris. 00723_ Lgt. Ion Engine destroyed. 00725_ The unstable cave ceiling collapses. 00726_ K-01 Serf collects debris. 00729_ G-34 Mercenary destroyed. 00730_ Particle Cannon destroyed. 00731_ K-01 Serf destroyed. 00731_ Matter Filter disabled. 00731_ U-05 Engineer lays Concrete. 00735_ Flight Unit destroyed. 00735_ Destroyed Flight Unit. 00735_ Rocket Launcher destroyed. 00736_ The unstable cave ceiling collapses. 00736_ U-05 Engineer builds a Wall. 00736_ Flight Unit destroyed. 00736_ Critical hit (Burn: +37). 00736_ Imp. Hover Unit destroyed. 00738_ U-05 Engineer builds a Wall. Map ----- +----------------------------------------------------+ | ??????????????????# ???????##########??######### | | ??????????????????# ???????# #??#/= | | ??????????????????# ???????# #??#= """" | | ??????????????????# ######## #??# ""S"" | | ??????????????????# # !!! ##?# "" "" | | ??????????????????# / !! = #?# | | ??????????????????# # !! %####! """ | | ??????????????????#######+##+# !+ +! """ % | | ???????????????????# ! % # ####! """ | | ???????????????????# ! % """ # #??# == | | ???????????????????# = % [=" ########+#######+#### | | ???????????????????# ![ =""" # # | | ???????????????????# """ # """ + | | ???????????????????#! ] """ # """ # | | ???????????????????#!]] # """ ######## ### | | ????????????????####!] ! # #??????# #?? | | ????????????????### ## ####### #??????# #?? | | ???????????????### ##########+########## #?? | | ????????????? #?? | | ?????????????? |! % % #?? | | ????????????????= #?? | | ????????????????? u#### ##############+##?? | | ???????????????# ##### ### """""???????????? | | ??????????????# # # """"""??????????? | | ??????????????# [ Y """""""?????????? | | ????????????? #@ Y """""" ????????? | | ?????????????? # "" ?# """""" #???????? | | ????????????????# """"??# #???????? | | ????????????????????????## #???????? | | ?????????????????????????# #???????? | | ?????????????????????????## ############???????? | | ??????????????????????????# #??????????????????? | | ??????????????????????????# #??????????????????? | | ??????????????????????????# #??????????????????? | | ?????????????????????????? ??????????????????? | | ????????????????????????? ??????????????????? | | ????????????????????????? T #?????????????????? | | ???????????????????????? #?????????????????? | | ???????????????????????### #?????????????????? | | ?????????????????????????#######?????????????????? | | ?????????????????????????????????????????????????? | | ?????????????????????????????????????????????????? | | ?????????????????????????????????????????????????? | | ?????????????????????????????????????????????????? | | ?????????????????????????????????????????????????? | | ?????????????????????????????????????????????????? | | ?????????????????????????????????????????????????? | | ?????????????????????????????????????????????????? | | ?????????????????????????????????????????????????? | | ?????????????????????????????????????????????????? | +----------------------------------------------------+ Best States ------------- Heat Dissipation 28 Energy Generation 15 Energy Capacity 275 Matter Stores 300 Matter Capacity 300 Sight Range 16 Terrain Scan Density 10 Armor Coverage 150 Power Shielding 33 Evasion (%) 55 Item Schematics ----------------- None Robot Schematics ------------------ None Fabricated ------------ Nothing Alien Tech Used ----------------- None Achievements -------------- None Challenges ------------ None Game ------ Seed DrainedTrapShredder Manual? 0 Play Time 00:23:17 Cumulative 21.8 hours Start 2023.06.11 @ 20:54:57 End 2023.06.11 @ 21:26:40 Sessions 1 Manual Loads 0 Difficulty Rogue Special Mode None Game No. 41 Rogue 41 Adventurer 0 Explorer 0 Win Type - Total 0 Types 0/0/0/0/0/0/0/0/0 Lore% 4 Gallery% 25 Achievement% 3 Wizard Run 0 Options --------- ASCII 0 Keyboard 1 Movement Numpad Keybinds 0 Fullscreen 2 Font 24/Terminus Map View 76x50 Tactical HUD 1 Map Filters NONE Filters NONE Steam 1 RUN: 279b4367-057b-45d1-9b67-3571f7893455